[Event "January 9 Early 2024"]
[Site "https://www.chess.com"]
[Date "2024.01.11"]
[Round "6"]
[White "Perossa, Nicolas"]
[Black "Tasev, Dejan"]
[Result "1-0"]
[Board "112"]
[TimeControl "180+1"]
[WhiteFideId "2850520"]
[BlackFideId "936618"]
[WhiteElo "2450"]
[BlackElo "2645"]
[WhiteTeam "ITA"]
[BlackTeam "SRB"]
[WhiteClock "0:00:12"]
[BlackClock "0:00:52"]

1. d4 {[%clk 0:03:00]}  Nf6 {[%clk 0:02:59]} 2. Nf3 {[%clk 0:03:00]}  e6 {[%clk 0:02:59]} 3. g3 {[%clk 0:02:55]}  d5 {[%clk 0:02:57]} 4. Bg2 {[%clk 0:02:55]}  Be7 {[%clk 0:02:54]} 5. O-O {[%clk 0:02:56]}  O-O {[%clk 0:02:54]} 6. c4 {[%clk 0:02:57]}  dxc4 {[%clk 0:02:54]} 7. Qc2 {[%clk 0:02:57]}  a6 {[%clk 0:02:54]} 8. a4 {[%clk 0:02:57]}  Nc6 {[%clk 0:02:54]} 9. Qxc4 {[%clk 0:02:54]}  Nb4 {[%clk 0:02:53]} 10. Bf4 {[%clk 0:02:50]}  c6 {[%clk 0:02:50]} 11. Nc3 {[%clk 0:02:48]}  a5 {[%clk 0:02:50]} 12. e4 {[%clk 0:02:45]}  b6 {[%clk 0:02:50]} 13. Rfd1 {[%clk 0:02:43]}  Ba6 {[%clk 0:02:50]} 14. Qb3 {[%clk 0:02:43]}  Rc8 {[%clk 0:02:46]} 15. Ne5 {[%clk 0:02:11]}  Bd6 {[%clk 0:02:27]} 16. Be3 {[%clk 0:01:48]}  Qc7 {[%clk 0:02:25]} 17. Bg5 {[%clk 0:01:17]}  Be7 {[%clk 0:02:23]} 18. Bf4 {[%clk 0:01:10]}  Qa7 {[%clk 0:02:21]} 19. Rac1 {[%clk 0:01:01]}  Rfd8 {[%clk 0:02:21]} 20. Na2 {[%clk 0:01:01]}  Nxa2 {[%clk 0:02:13]} 21. Qxa2 {[%clk 0:00:59]}  Bb7 {[%clk 0:02:09]} 22. Qb3 {[%clk 0:00:57]}  c5 {[%clk 0:02:04]} 23. Bh3 {[%clk 0:00:32]}  Bxe4 {[%clk 0:01:52]} 24. Bxe6 {[%clk 0:00:31]}  Bd5 {[%clk 0:01:45]} 25. Bxf7+ {[%clk 0:00:29]}  Kh8 {[%clk 0:01:45]} 26. Bxd5 {[%clk 0:00:29]}  Rxd5 {[%clk 0:01:43]} 27. dxc5 {[%clk 0:00:26]}  Rxe5 {[%clk 0:01:24]} 28. Bxe5 {[%clk 0:00:23]}  Bxc5 {[%clk 0:01:25]} 29. Bxf6 {[%clk 0:00:21]}  gxf6 {[%clk 0:01:25]} 30. Qf3 {[%clk 0:00:21]}  Qf7 {[%clk 0:01:22]} 31. Kg2 {[%clk 0:00:22]}  Re8 {[%clk 0:01:18]} 32. Re1 {[%clk 0:00:21]}  Rd8 {[%clk 0:01:16]} 33. Rcd1 {[%clk 0:00:21]}  Rf8 {[%clk 0:01:14]} 34. Re4 {[%clk 0:00:18]}  Qa2 {[%clk 0:01:09]} 35. Rd2 {[%clk 0:00:13]}  Qf7 {[%clk 0:01:08]} 36. Rde2 {[%clk 0:00:13]}  h6 {[%clk 0:01:03]} 37. Qf5 {[%clk 0:00:13]}  Rg8 {[%clk 0:00:56]} 38. Rg4 {[%clk 0:00:11]}  Rxg4 {[%clk 0:00:54]} 39. Qxg4 {[%clk 0:00:11]}  f5 {[%clk 0:00:55]} 40. Qf4 {[%clk 0:00:11]}  Kg7 {[%clk 0:00:54]} 41. Qe5+ {[%clk 0:00:11]}  Kg6 {[%clk 0:00:54]} 42. Qe6+ {[%clk 0:00:11]}  Qxe6 {[%clk 0:00:55]} 43. Rxe6+ {[%clk 0:00:12]}  Kg7 {[%clk 0:00:55]} 44. f4 {[%clk 0:00:11]}  Bd4 {[%clk 0:00:55]} 45. Rc6 {[%clk 0:00:11]}  Bc5 {[%clk 0:00:54]} 46. b3 {[%clk 0:00:12]}  h5 {[%clk 0:00:52]} 47. h3 {[%clk 0:00:12]} 1-0

[Event "January 9 Early 2024"]
[Site "https://www.chess.com"]
[Date "2024.01.11"]
[Round "6"]
[White "Shkapenko, Pavel"]
[Black "Tan, Ralph"]
[Result "0-1"]
[Board "113"]
[TimeControl "180+1"]
[WhiteFideId "4151933"]
[BlackFideId "30966590"]
[WhiteElo "2746"]
[BlackElo "2569"]
[WhiteTeam "FID"]
[BlackTeam "USA"]
[WhiteClock "0:00:02"]
[BlackClock "0:00:22"]

1. e4 {[%clk 0:03:00]}  c6 {[%clk 0:02:59]} 2. d4 {[%clk 0:03:00]}  d5 {[%clk 0:02:58]} 3. e5 {[%clk 0:03:01]}  c5 {[%clk 0:02:59]} 4. dxc5 {[%clk 0:03:00]}  e6 {[%clk 0:02:56]} 5. a3 {[%clk 0:03:00]}  Bxc5 {[%clk 0:02:55]} 6. b4 {[%clk 0:03:01]}  Bb6 {[%clk 0:02:55]} 7. Qg4 {[%clk 0:03:01]}  g6 {[%clk 0:02:52]} 8. Nf3 {[%clk 0:02:57]}  h5 {[%clk 0:02:50]} 9. Qf4 {[%clk 0:02:54]}  Nc6 {[%clk 0:02:38]} 10. Bd3 {[%clk 0:02:48]}  Nh6 {[%clk 0:02:30]} 11. O-O {[%clk 0:02:44]}  Nf5 {[%clk 0:02:26]} 12. c4 {[%clk 0:02:25]}  dxc4 {[%clk 0:02:21]} 13. Qxc4 {[%clk 0:02:21]}  Ncd4 {[%clk 0:02:12]} 14. Nbd2 {[%clk 0:02:14]}  Bd7 {[%clk 0:02:05]} 15. Bxf5 {[%clk 0:02:10]}  Rc8 {[%clk 0:01:55]} 16. Qa2 {[%clk 0:01:43]}  gxf5 {[%clk 0:01:47]} 17. Nxd4 {[%clk 0:01:03]}  Bxd4 {[%clk 0:01:48]} 18. Nc4 {[%clk 0:01:03]}  Rxc4 {[%clk 0:01:35]} 19. Qxc4 {[%clk 0:00:59]}  Bxa1 {[%clk 0:01:35]} 20. Bf4 {[%clk 0:00:59]}  Bb2 {[%clk 0:01:12]} 21. Rb1 {[%clk 0:00:51]}  Bxa3 {[%clk 0:01:00]} 22. Qb3 {[%clk 0:00:43]}  Bc6 {[%clk 0:00:54]} 23. Qxa3 {[%clk 0:00:40]}  Rg8 {[%clk 0:00:52]} 24. b5 {[%clk 0:00:15]}  Bxg2 {[%clk 0:00:43]} 25. Bg3 {[%clk 0:00:14]}  Bd5 {[%clk 0:00:40]} 26. Kf1 {[%clk 0:00:11]}  h4 {[%clk 0:00:36]} 27. b6 {[%clk 0:00:06]}  axb6 {[%clk 0:00:30]} 28. Qa4+ {[%clk 0:00:07]}  Bc6 {[%clk 0:00:23]} 29. Qxh4 {[%clk 0:00:07]}  Qd3+ {[%clk 0:00:22]} 30. Kg1 {[%clk 0:00:02]}  Qxb1# {[%clk 0:00:22]} 0-1

[Event "January 9 Early 2024"]
[Site "https://www.chess.com"]
[Date "2024.01.11"]
[Round "6"]
[White "Petrukhina, Olga"]
[Black "Viana, Valeria"]
[Result "1-0"]
[Board "114"]
[TimeControl "180+1"]
[WhiteFideId "13703935"]
[BlackFideId "8407100"]
[WhiteElo "2294"]
[BlackElo "2087"]
[WhiteTeam "KAZ"]
[BlackTeam "HON"]
[WhiteClock "0:00:33"]
[BlackClock "0:00:02"]

1. d4 {[%clk 0:03:00]}  Nf6 {[%clk 0:02:58]} 2. c4 {[%clk 0:03:00]}  e6 {[%clk 0:02:57]} 3. g3 {[%clk 0:03:00]}  d5 {[%clk 0:02:47]} 4. Nf3 {[%clk 0:03:00]}  Bb4+ {[%clk 0:02:42]} 5. Bd2 {[%clk 0:02:57]}  Bxd2+ {[%clk 0:02:40]} 6. Nbxd2 {[%clk 0:02:58]}  O-O {[%clk 0:02:36]} 7. Bg2 {[%clk 0:02:58]}  c6 {[%clk 0:02:19]} 8. O-O {[%clk 0:02:57]}  Nbd7 {[%clk 0:02:19]} 9. Qc2 {[%clk 0:02:54]}  Re8 {[%clk 0:02:09]} 10. e4 {[%clk 0:02:51]}  dxe4 {[%clk 0:02:09]} 11. Nxe4 {[%clk 0:02:51]}  Nxe4 {[%clk 0:02:04]} 12. Qxe4 {[%clk 0:02:52]}  Nf6 {[%clk 0:02:03]} 13. Qe2 {[%clk 0:02:41]}  Qc7 {[%clk 0:01:38]} 14. c5 {[%clk 0:02:36]}  b6 {[%clk 0:01:36]} 15. Ne5 {[%clk 0:02:18]}  Bb7 {[%clk 0:01:29]} 16. b4 {[%clk 0:02:08]}  Rad8 {[%clk 0:01:23]} 17. Rfd1 {[%clk 0:02:01]}  Nd5 {[%clk 0:01:21]} 18. Qb2 {[%clk 0:01:59]}  f6 {[%clk 0:01:03]} 19. Nc4 {[%clk 0:01:50]}  Ba6 {[%clk 0:00:59]} 20. Nd6 {[%clk 0:01:42]}  Re7 {[%clk 0:00:55]} 21. Rac1 {[%clk 0:01:37]}  Bc8 {[%clk 0:00:44]} 22. Re1 {[%clk 0:01:32]}  a5 {[%clk 0:00:33]} 23. a3 {[%clk 0:01:30]}  axb4 {[%clk 0:00:30]} 24. axb4 {[%clk 0:01:31]}  bxc5 {[%clk 0:00:25]} 25. bxc5 {[%clk 0:01:25]}  Ba6 {[%clk 0:00:22]} 26. Bh3 {[%clk 0:01:12]}  f5 {[%clk 0:00:20]} 27. Re5 {[%clk 0:01:02]}  Nf6 {[%clk 0:00:19]} 28. Rce1 {[%clk 0:00:50]}  Bc8 {[%clk 0:00:08]} 29. Bxf5 {[%clk 0:00:39]}  Nd5 {[%clk 0:00:04]} 30. Bxe6+ {[%clk 0:00:31]}  Bxe6 {[%clk 0:00:04]} 31. Rxe6 {[%clk 0:00:32]}  Rxe6 {[%clk 0:00:02]} 32. Rxe6 {[%clk 0:00:33]} 1-0

[Event "January 9 Early 2024"]
[Site "https://www.chess.com"]
[Date "2024.01.11"]
[Round "6"]
[White "Liascovich, Lucas"]
[Black "Gubajdullin, Alexei"]
[Result "1/2-1/2"]
[Board "115"]
[TimeControl "180+1"]
[WhiteFideId "108634"]
[BlackFideId "4141202"]
[WhiteElo "2905"]
[BlackElo "2656"]
[WhiteTeam "ARG"]
[BlackTeam "RUS"]
[WhiteClock "0:00:52"]
[BlackClock "0:00:15"]

1. e4 {[%clk 0:02:58]}  e5 {[%clk 0:02:59]} 2. Nf3 {[%clk 0:02:55]}  Nf6 {[%clk 0:02:59]} 3. Nc3 {[%clk 0:02:55]}  Bb4 {[%clk 0:02:58]} 4. Nxe5 {[%clk 0:02:52]}  O-O {[%clk 0:02:58]} 5. Be2 {[%clk 0:02:49]}  Re8 {[%clk 0:02:52]} 6. Nd3 {[%clk 0:02:49]}  Bxc3 {[%clk 0:02:51]} 7. dxc3 {[%clk 0:02:50]}  Nxe4 {[%clk 0:02:51]} 8. O-O {[%clk 0:02:51]}  d6 {[%clk 0:02:49]} 9. Re1 {[%clk 0:02:48]}  Nd7 {[%clk 0:02:48]} 10. c4 {[%clk 0:02:44]}  Ndf6 {[%clk 0:02:46]} 11. Bf3 {[%clk 0:02:43]}  b6 {[%clk 0:02:36]} 12. Bf4 {[%clk 0:02:36]}  Bb7 {[%clk 0:02:36]} 13. c3 {[%clk 0:02:34]}  Qd7 {[%clk 0:02:34]} 14. Qc2 {[%clk 0:02:28]}  Qf5 {[%clk 0:02:29]} 15. Be3 {[%clk 0:02:28]}  g5 {[%clk 0:02:20]} 16. h3 {[%clk 0:02:25]}  h5 {[%clk 0:02:19]} 17. Bxe4 {[%clk 0:02:12]}  Bxe4 {[%clk 0:02:17]} 18. Rad1 {[%clk 0:02:11]}  g4 {[%clk 0:01:45]} 19. h4 {[%clk 0:02:07]}  Nd7 {[%clk 0:01:43]} 20. Qd2 {[%clk 0:02:04]}  Ne5 {[%clk 0:01:11]} 21. Nxe5 {[%clk 0:01:25]}  Rxe5 {[%clk 0:00:54]} 22. Bd4 {[%clk 0:01:25]}  Re6 {[%clk 0:00:52]} 23. Qg5+ {[%clk 0:01:16]}  Qxg5 {[%clk 0:00:51]} 24. hxg5 {[%clk 0:01:17]}  Rae8 {[%clk 0:00:50]} 25. b4 {[%clk 0:01:13]}  h4 {[%clk 0:00:45]} 26. Re3 {[%clk 0:01:12]}  Kh7 {[%clk 0:00:34]} 27. Rde1 {[%clk 0:01:06]}  Kg6 {[%clk 0:00:33]} 28. Bf6 {[%clk 0:01:07]}  Bd3 {[%clk 0:00:19]} 29. c5 {[%clk 0:01:03]}  Rxe3 {[%clk 0:00:19]} 30. Rxe3 {[%clk 0:01:02]}  Rxe3 {[%clk 0:00:19]} 31. fxe3 {[%clk 0:01:03]}  dxc5 {[%clk 0:00:19]} 32. bxc5 {[%clk 0:01:04]}  bxc5 {[%clk 0:00:19]} 33. Kf2 {[%clk 0:01:00]}  a6 {[%clk 0:00:18]} 34. a3 {[%clk 0:00:59]}  c6 {[%clk 0:00:18]} 35. Be7 {[%clk 0:00:57]}  c4 {[%clk 0:00:18]} 36. Bd8 {[%clk 0:00:58]}  Kf5 {[%clk 0:00:18]} 37. g6 {[%clk 0:00:58]}  g3+ {[%clk 0:00:17]} 38. Ke1 {[%clk 0:00:55]}  fxg6 {[%clk 0:00:16]} 39. Bxh4 {[%clk 0:00:55]}  Kg4 {[%clk 0:00:16]} 40. Be7 {[%clk 0:00:54]}  Kf5 {[%clk 0:00:15]} 41. Bd6 {[%clk 0:00:53]}  Kg4 {[%clk 0:00:15]} 42. Bc7 {[%clk 0:00:52]}  g5 {[%clk 0:00:15]} 43. Bd6 {[%clk 0:00:52]}  Kh4 {[%clk 0:00:15]} 44. Bc7 {[%clk 0:00:52]}  Kg4 {[%clk 0:00:15]} 45. Bd6 {[%clk 0:00:52]}  Kh4 {[%clk 0:00:15]} 46. Bc7 {[%clk 0:00:52]}  Kg4 {[%clk 0:00:15]} 1/2-1/2

[Event "January 9 Early 2024"]
[Site "https://www.chess.com"]
[Date "2024.01.11"]
[Round "6"]
[White "Caspi, Israel"]
[Black "Ibarra Jerez, Jose Carlos"]
[Result "0-1"]
[Board "117"]
[TimeControl "180+1"]
[WhiteFideId "2807394"]
[BlackFideId "2226332"]
[WhiteElo "2627"]
[BlackElo "2932"]
[WhiteTeam "ISR"]
[BlackTeam "ESP"]
[WhiteClock "0:00:34"]
[BlackClock "0:00:23"]

1. e4 {[%clk 0:03:00]}  c5 {[%clk 0:02:59]} 2. Nf3 {[%clk 0:02:56]}  e6 {[%clk 0:03:00]} 3. d4 {[%clk 0:02:57]}  cxd4 {[%clk 0:03:00]} 4. Nxd4 {[%clk 0:02:58]}  Bc5 {[%clk 0:03:00]} 5. Nb3 {[%clk 0:02:57]}  Bb6 {[%clk 0:03:00]} 6. Nc3 {[%clk 0:02:51]}  Ne7 {[%clk 0:03:00]} 7. Bf4 {[%clk 0:02:48]}  d5 {[%clk 0:03:00]} 8. exd5 {[%clk 0:02:47]}  exd5 {[%clk 0:03:01]} 9. Bd3 {[%clk 0:02:47]}  O-O {[%clk 0:02:59]} 10. Qd2 {[%clk 0:02:48]}  Nbc6 {[%clk 0:03:00]} 11. O-O-O {[%clk 0:02:48]}  Be6 {[%clk 0:02:57]} 12. Kb1 {[%clk 0:02:47]}  Rc8 {[%clk 0:02:56]} 13. Na4 {[%clk 0:02:45]}  Bc7 {[%clk 0:02:48]} 14. Nac5 {[%clk 0:02:43]}  Ng6 {[%clk 0:02:41]} 15. Bxg6 {[%clk 0:02:38]}  hxg6 {[%clk 0:02:39]} 16. Nxb7 {[%clk 0:02:37]}  Qe7 {[%clk 0:02:28]} 17. Bxc7 {[%clk 0:02:33]}  Qxc7 {[%clk 0:02:29]} 18. N7c5 {[%clk 0:02:33]}  Bf5 {[%clk 0:02:25]} 19. f3 {[%clk 0:02:29]}  g5 {[%clk 0:01:56]} 20. Qxd5 {[%clk 0:02:16]}  Bxc2+ {[%clk 0:01:54]} 21. Ka1 {[%clk 0:02:13]}  Bxd1 {[%clk 0:01:53]} 22. Qxd1 {[%clk 0:02:12]}  Rfd8 {[%clk 0:01:50]} 23. Qc1 {[%clk 0:02:03]}  Nd4 {[%clk 0:01:17]} 24. Qxg5 {[%clk 0:02:02]}  Nxb3+ {[%clk 0:01:16]} 25. Nxb3 {[%clk 0:02:01]}  Qc2 {[%clk 0:01:17]} 26. Qc1 {[%clk 0:01:19]}  Qxg2 {[%clk 0:01:07]} 27. Qf1 {[%clk 0:01:16]}  Rc2 {[%clk 0:00:53]} 28. Qxg2 {[%clk 0:01:11]}  Rxg2 {[%clk 0:00:53]} 29. a3 {[%clk 0:01:10]}  Rd3 {[%clk 0:00:51]} 30. Nc5 {[%clk 0:01:06]}  Rxf3 {[%clk 0:00:51]} 31. h4 {[%clk 0:01:02]}  Rff2 {[%clk 0:00:50]} 32. Nd3 {[%clk 0:01:02]}  Rd2 {[%clk 0:00:50]} 33. Rh3 {[%clk 0:01:03]}  Rh2 {[%clk 0:00:46]} 34. Rg3 {[%clk 0:00:58]}  Rxh4 {[%clk 0:00:47]} 35. Ka2 {[%clk 0:00:58]}  Rd4 {[%clk 0:00:32]} 36. Nb4 {[%clk 0:00:57]}  Rd6 {[%clk 0:00:25]} 37. Re3 {[%clk 0:00:45]}  a5 {[%clk 0:00:24]} 38. Re8+ {[%clk 0:00:34]}  Kh7 {[%clk 0:00:23]} 39. Rb8 {[%clk 0:00:34]}  axb4 {[%clk 0:00:23]} 40. Rxb4 {[%clk 0:00:35]}  f5 {[%clk 0:00:23]} 41. a4 {[%clk 0:00:34]}  R2d4 {[%clk 0:00:22]} 42. Kb3 {[%clk 0:00:32]}  Rxb4+ {[%clk 0:00:22]} 43. Kxb4 {[%clk 0:00:33]}  f4 {[%clk 0:00:23]} 44. Kc5 {[%clk 0:00:34]}  Rf6 {[%clk 0:00:23]} 0-1

[Event "January 9 Early 2024"]
[Site "https://www.chess.com"]
[Date "2024.01.11"]
[Round "6"]
[White "De Winter, Arthur"]
[Black "Kokoszczynski, Jan"]
[Result "1-0"]
[Board "118"]
[TimeControl "180+1"]
[WhiteFideId "1069020"]
[BlackFideId "1174460"]
[WhiteElo "2795"]
[BlackElo "2571"]
[WhiteTeam "NED"]
[BlackTeam "POL"]
[WhiteClock "0:01:10"]
[BlackClock "0:00:09"]

1. e4 {[%clk 0:03:00]}  e5 {[%clk 0:02:59]} 2. Nf3 {[%clk 0:02:59]}  Nc6 {[%clk 0:02:59]} 3. Bb5 {[%clk 0:02:59]}  a6 {[%clk 0:02:56]} 4. Ba4 {[%clk 0:03:00]}  Nf6 {[%clk 0:02:56]} 5. d3 {[%clk 0:03:00]}  b5 {[%clk 0:02:50]} 6. Bb3 {[%clk 0:03:00]}  Be7 {[%clk 0:02:49]} 7. a4 {[%clk 0:02:53]}  b4 {[%clk 0:02:45]} 8. Nbd2 {[%clk 0:02:51]}  O-O {[%clk 0:02:45]} 9. O-O {[%clk 0:02:50]}  d6 {[%clk 0:02:45]} 10. h3 {[%clk 0:02:49]}  Na5 {[%clk 0:02:41]} 11. Ba2 {[%clk 0:02:48]}  c5 {[%clk 0:02:41]} 12. Re1 {[%clk 0:02:47]}  Be6 {[%clk 0:02:36]} 13. Bxe6 {[%clk 0:02:44]}  fxe6 {[%clk 0:02:37]} 14. c3 {[%clk 0:02:45]}  Rb8 {[%clk 0:02:37]} 15. d4 {[%clk 0:02:42]}  bxc3 {[%clk 0:02:14]} 16. bxc3 {[%clk 0:02:43]}  exd4 {[%clk 0:02:11]} 17. cxd4 {[%clk 0:02:44]}  d5 {[%clk 0:02:11]} 18. Ba3 {[%clk 0:02:29]}  c4 {[%clk 0:01:53]} 19. Bxe7 {[%clk 0:02:19]}  Qxe7 {[%clk 0:01:54]} 20. exd5 {[%clk 0:02:17]}  Nxd5 {[%clk 0:01:55]} 21. Rc1 {[%clk 0:02:17]}  Rfc8 {[%clk 0:01:50]} 22. Ne4 {[%clk 0:02:15]}  Nb3 {[%clk 0:01:20]} 23. Rc2 {[%clk 0:02:15]}  Nb4 {[%clk 0:01:20]} 24. Neg5 {[%clk 0:02:04]}  h6 {[%clk 0:01:04]} 25. Rxc4 {[%clk 0:01:57]}  Rxc4 {[%clk 0:00:40]} 26. Qxb3 {[%clk 0:01:56]}  Rc6 {[%clk 0:00:41]} 27. Nxe6 {[%clk 0:01:53]}  Qf7 {[%clk 0:00:34]} 28. d5 {[%clk 0:01:46]}  Rcb6 {[%clk 0:00:28]} 29. Ne5 {[%clk 0:01:44]}  Nxd5 {[%clk 0:00:21]} 30. Qxb6 {[%clk 0:01:44]}  Rxb6 {[%clk 0:00:18]} 31. Nxf7 {[%clk 0:01:44]}  Kxf7 {[%clk 0:00:18]} 32. Nc5 {[%clk 0:01:41]}  Rc6 {[%clk 0:00:16]} 33. Nd3 {[%clk 0:01:41]}  Rc3 {[%clk 0:00:13]} 34. Ne5+ {[%clk 0:01:37]}  Ke6 {[%clk 0:00:11]} 35. g3 {[%clk 0:01:34]}  Kd6 {[%clk 0:00:08]} 36. Nf7+ {[%clk 0:01:32]}  Kd7 {[%clk 0:00:09]} 37. Rd1 {[%clk 0:01:28]}  Ke6 {[%clk 0:00:06]} 38. Nd8+ {[%clk 0:01:29]}  Kd6 {[%clk 0:00:07]} 39. Nb7+ {[%clk 0:01:29]}  Kc6 {[%clk 0:00:07]} 40. Na5+ {[%clk 0:01:27]}  Kc5 {[%clk 0:00:06]} 41. Nb7+ {[%clk 0:01:19]}  Kc6 {[%clk 0:00:07]} 42. Nd8+ {[%clk 0:01:19]}  Kd6 {[%clk 0:00:08]} 43. Kg2 {[%clk 0:01:09]}  Ra3 {[%clk 0:00:08]} 44. Rd4 {[%clk 0:01:09]}  Kc5 {[%clk 0:00:08]} 45. Ne6+ {[%clk 0:01:10]}  Kd6 {[%clk 0:00:09]} 46. Nf4 {[%clk 0:01:10]}  Ke5 {[%clk 0:00:07]} 47. Rxd5+ {[%clk 0:01:10]}  Ke4 {[%clk 0:00:08]} 48. Ra5 {[%clk 0:01:10]}  g5 {[%clk 0:00:08]} 49. Nd5 {[%clk 0:01:09]}  h5 {[%clk 0:00:07]} 50. Nf6+ {[%clk 0:01:09]}  Kd4 {[%clk 0:00:07]} 51. Nxh5 {[%clk 0:01:10]}  g4 {[%clk 0:00:07]} 52. hxg4 {[%clk 0:01:10]}  Ke4 {[%clk 0:00:08]} 53. Rxa6 {[%clk 0:01:10]}  Ra1 {[%clk 0:00:07]} 54. g5 {[%clk 0:01:10]}  Kd3 {[%clk 0:00:07]} 55. g6 {[%clk 0:01:10]}  Re1 {[%clk 0:00:08]} 56. g7 {[%clk 0:01:11]}  Re8 {[%clk 0:00:09]} 57. Nf6 {[%clk 0:01:10]} 1-0

[Event "January 9 Early 2024"]
[Site "https://www.chess.com"]
[Date "2024.01.11"]
[Round "6"]
[White "Martinez, Shawn"]
[Black "Khumalo, Keith"]
[Result "0-1"]
[Board "120"]
[TimeControl "180+1"]
[WhiteFideId "2039770"]
[BlackFideId "14319470"]
[WhiteElo "2446"]
[BlackElo "2692"]
[WhiteTeam "USA"]
[BlackTeam "RSA"]
[WhiteClock "0:00:22"]
[BlackClock "0:00:54"]

1. e4 {[%clk 0:03:00]}  c5 {[%clk 0:02:59]} 2. Nc3 {[%clk 0:03:00]}  g6 {[%clk 0:02:59]} 3. Bc4 {[%clk 0:02:59]}  Bg7 {[%clk 0:03:00]} 4. Qf3 {[%clk 0:02:59]}  e6 {[%clk 0:02:58]} 5. Nb5 {[%clk 0:02:59]}  d6 {[%clk 0:02:54]} 6. Qg3 {[%clk 0:02:58]}  e5 {[%clk 0:02:41]} 7. Qb3 {[%clk 0:02:42]}  Nh6 {[%clk 0:02:37]} 8. Qd3 {[%clk 0:02:35]}  Ke7 {[%clk 0:02:30]} 9. a4 {[%clk 0:02:34]}  Nc6 {[%clk 0:02:30]} 10. c3 {[%clk 0:02:20]}  a6 {[%clk 0:02:30]} 11. Na3 {[%clk 0:02:19]}  f5 {[%clk 0:02:22]} 12. Bd5 {[%clk 0:02:12]}  Be6 {[%clk 0:02:16]} 13. Nf3 {[%clk 0:02:01]}  Bxd5 {[%clk 0:02:13]} 14. Qxd5 {[%clk 0:01:59]}  Qg8 {[%clk 0:02:13]} 15. Nc4 {[%clk 0:01:54]}  Qxd5 {[%clk 0:02:08]} 16. exd5 {[%clk 0:01:54]}  Nd8 {[%clk 0:02:08]} 17. Nb6 {[%clk 0:01:50]}  Rb8 {[%clk 0:02:07]} 18. a5 {[%clk 0:01:48]}  e4 {[%clk 0:02:06]} 19. Ng5 {[%clk 0:01:40]}  Bf6 {[%clk 0:02:05]} 20. h4 {[%clk 0:01:35]}  Ng4 {[%clk 0:01:58]} 21. f3 {[%clk 0:01:25]}  Ne5 {[%clk 0:01:50]} 22. fxe4 {[%clk 0:01:23]}  h6 {[%clk 0:01:51]} 23. Nf3 {[%clk 0:01:19]}  Nd3+ {[%clk 0:01:49]} 24. Ke2 {[%clk 0:01:18]}  fxe4 {[%clk 0:01:50]} 25. Ne1 {[%clk 0:01:17]}  Nf4+ {[%clk 0:01:47]} 26. Kd1 {[%clk 0:01:17]}  Nf7 {[%clk 0:01:35]} 27. g3 {[%clk 0:01:16]}  Nh5 {[%clk 0:01:31]} 28. Rg1 {[%clk 0:01:14]}  Ne5 {[%clk 0:01:32]} 29. d4 {[%clk 0:01:11]}  cxd4 {[%clk 0:01:28]} 30. cxd4 {[%clk 0:01:08]}  Ng4 {[%clk 0:01:29]} 31. Nc2 {[%clk 0:01:05]}  Nf2+ {[%clk 0:01:23]} 32. Ke2 {[%clk 0:01:04]}  Nd3 {[%clk 0:01:23]} 33. Ke3 {[%clk 0:00:49]}  Nxc1 {[%clk 0:01:09]} 34. Raxc1 {[%clk 0:00:48]}  g5 {[%clk 0:01:10]} 35. Kxe4 {[%clk 0:00:45]}  gxh4 {[%clk 0:01:09]} 36. g4 {[%clk 0:00:43]}  Ng3+ {[%clk 0:01:08]} 37. Kd3 {[%clk 0:00:41]}  Bg5 {[%clk 0:01:09]} 38. Rce1+ {[%clk 0:00:40]}  Kf7 {[%clk 0:01:09]} 39. Ne3 {[%clk 0:00:39]}  Rhe8 {[%clk 0:01:06]} 40. Nec4 {[%clk 0:00:38]}  Bf4 {[%clk 0:00:58]} 41. Ref1 {[%clk 0:00:33]}  Nxf1 {[%clk 0:00:57]} 42. Rxf1 {[%clk 0:00:33]}  Kg6 {[%clk 0:00:56]} 43. Rxf4 {[%clk 0:00:33]}  Kg5 {[%clk 0:00:57]} 44. Rf1 {[%clk 0:00:31]}  h3 {[%clk 0:00:57]} 45. Nxd6 {[%clk 0:00:30]}  Rf8 {[%clk 0:00:57]} 46. Ne4+ {[%clk 0:00:29]}  Kxg4 {[%clk 0:00:56]} 47. Rh1 {[%clk 0:00:28]}  Rf3+ {[%clk 0:00:55]} 48. Ke2 {[%clk 0:00:28]}  Re8 {[%clk 0:00:54]} 49. Rg1+ {[%clk 0:00:28]}  Kf4 {[%clk 0:00:53]} 50. d6 {[%clk 0:00:22]}  Rxe4+ {[%clk 0:00:53]} 51. Kd2 {[%clk 0:00:22]}  Rxd4+ {[%clk 0:00:54]} 52. Kc2 {[%clk 0:00:22]}  Rxd6 {[%clk 0:00:54]} 0-1

[Event "January 9 Early 2024"]
[Site "https://www.chess.com"]
[Date "2024.01.11"]
[Round "6"]
[White "Karavade, Eesha"]
[Black "Tarhan, Adar"]
[Result "0-1"]
[Board "121"]
[TimeControl "180+1"]
[WhiteFideId "5012600"]
[BlackFideId "34544712"]
[WhiteElo "2484"]
[BlackElo "2689"]
[WhiteTeam "IND"]
[BlackTeam "TUR"]
[WhiteClock "0:00:22"]
[BlackClock "0:00:12"]

1. d4 {[%clk 0:03:00]}  Nf6 {[%clk 0:02:59]} 2. Nf3 {[%clk 0:02:59]}  g6 {[%clk 0:02:58]} 3. Bf4 {[%clk 0:02:58]}  Bg7 {[%clk 0:02:58]} 4. Nc3 {[%clk 0:02:59]}  d5 {[%clk 0:02:56]} 5. h4 {[%clk 0:02:55]}  Bg4 {[%clk 0:02:49]} 6. Ne5 {[%clk 0:02:53]}  Be6 {[%clk 0:02:30]} 7. Qd2 {[%clk 0:02:52]}  h5 {[%clk 0:02:28]} 8. e3 {[%clk 0:02:47]}  c6 {[%clk 0:02:22]} 9. Be2 {[%clk 0:02:45]}  Nbd7 {[%clk 0:02:21]} 10. f3 {[%clk 0:02:34]}  Qb6 {[%clk 0:02:11]} 11. O-O-O {[%clk 0:02:27]}  Rc8 {[%clk 0:02:06]} 12. Nxd7 {[%clk 0:02:19]}  Nxd7 {[%clk 0:02:02]} 13. e4 {[%clk 0:02:17]}  dxe4 {[%clk 0:01:58]} 14. fxe4 {[%clk 0:02:16]}  Nf6 {[%clk 0:01:53]} 15. d5 {[%clk 0:02:16]}  cxd5 {[%clk 0:01:52]} 16. exd5 {[%clk 0:02:15]}  Bf5 {[%clk 0:01:52]} 17. Bb5+ {[%clk 0:02:12]}  Nd7 {[%clk 0:01:44]} 18. Rhe1 {[%clk 0:01:51]}  O-O {[%clk 0:01:35]} 19. Bxd7 {[%clk 0:01:46]}  Bxd7 {[%clk 0:01:35]} 20. Rxe7 {[%clk 0:01:46]}  Bf5 {[%clk 0:01:35]} 21. Be5 {[%clk 0:01:41]}  Bxe5 {[%clk 0:01:08]} 22. Rxe5 {[%clk 0:01:41]}  Qf6 {[%clk 0:01:09]} 23. Qd4 {[%clk 0:01:35]}  b5 {[%clk 0:01:06]} 24. Re3 {[%clk 0:01:29]}  Qd6 {[%clk 0:00:50]} 25. Rd2 {[%clk 0:01:10]}  Rc4 {[%clk 0:00:38]} 26. Nxb5 {[%clk 0:01:04]}  Qb4 {[%clk 0:00:35]} 27. Qf6 {[%clk 0:00:29]}  Qxb5 {[%clk 0:00:31]} 28. d6 {[%clk 0:00:30]}  Rfc8 {[%clk 0:00:15]} 29. c3 {[%clk 0:00:29]}  Rf4 {[%clk 0:00:12]} 30. Rd1 {[%clk 0:00:22]}  Rf2 {[%clk 0:00:12]} 0-1